[Event "Titled Tuesday Blitz August 02 Late 2022"]
[White "Adewumi, Tanitoluwa"]
[Black "Riehle, Marco"]
[WhiteFideId "30966396"]
[BlackFideId "12904392"]
[WhiteElo "2497"]
[BlackElo "2462"]
[Result "1/2-1/2"]
[Round "01"]
[TimeControl "180+1"]
[Date "2022.08.02"]
[WhiteClock "0:00:06"]
[BlackClock "0:00:49"]

1. e4 {[%clk 0:02:53]}  e5 {[%clk 0:02:57]} 2. Nf3 {[%clk 0:02:53]}  Nf6 {[%clk 0:02:57]} 3. Nxe5 {[%clk 0:02:51]}  Nxe4 {[%clk 0:02:57]} 4. Qe2 {[%clk 0:02:48]}  Qe7 {[%clk 0:02:57]} 5. Qxe4 {[%clk 0:02:48]}  d6 {[%clk 0:02:57]} 6. d4 {[%clk 0:02:47]}  dxe5 {[%clk 0:02:56]} 7. dxe5 {[%clk 0:02:46]}  Nc6 {[%clk 0:02:28]} 8. Nc3 {[%clk 0:02:43]}  Qxe5 {[%clk 0:02:27]} 9. Qxe5+ {[%clk 0:02:43]}  Nxe5 {[%clk 0:02:28]} 10. Bf4 {[%clk 0:02:44]}  f6 {[%clk 0:02:25]} 11. O-O-O {[%clk 0:02:40]}  Bd7 {[%clk 0:02:24]} 12. Nb5 {[%clk 0:02:16]}  O-O-O {[%clk 0:02:24]} 13. Nxa7+ {[%clk 0:02:11]}  Kb8 {[%clk 0:02:24]} 14. Nb5 {[%clk 0:02:08]}  Bc5 {[%clk 0:02:24]} 15. f3 {[%clk 0:01:55]}  g5 {[%clk 0:02:21]} 16. Bxe5 {[%clk 0:01:52]}  fxe5 {[%clk 0:02:22]} 17. Nc3 {[%clk 0:01:53]}  Bc6 {[%clk 0:02:19]} 18. Bd3 {[%clk 0:00:37]}  g4 {[%clk 0:02:15]} 19. Be4 {[%clk 0:00:35]}  Bd7 {[%clk 0:02:13]} 20. Rd5 {[%clk 0:00:28]}  Bd4 {[%clk 0:02:13]} 21. Ne2 {[%clk 0:00:23]}  Be3+ {[%clk 0:02:12]} 22. Kb1 {[%clk 0:00:22]}  Rhe8 {[%clk 0:02:08]} 23. Rhd1 {[%clk 0:00:20]}  Kc8 {[%clk 0:02:03]} 24. Rxd7 {[%clk 0:00:20]}  Rxd7 {[%clk 0:02:04]} 25. Bf5 {[%clk 0:00:21]}  Bd4 {[%clk 0:02:04]} 26. c3 {[%clk 0:00:18]}  c5 {[%clk 0:02:04]} 27. Bxg4 {[%clk 0:00:16]}  Kc7 {[%clk 0:02:02]} 28. Bxd7 {[%clk 0:00:16]}  Kxd7 {[%clk 0:02:03]} 29. Ng3 {[%clk 0:00:16]}  Kc6 {[%clk 0:02:02]} 30. cxd4 {[%clk 0:00:17]}  exd4 {[%clk 0:02:03]} 31. Ne4 {[%clk 0:00:18]}  h5 {[%clk 0:02:01]} 32. b4 {[%clk 0:00:18]}  b6 {[%clk 0:01:58]} 33. bxc5 {[%clk 0:00:18]}  bxc5 {[%clk 0:01:56]} 34. Rc1 {[%clk 0:00:18]}  Rb8+ {[%clk 0:01:56]} 35. Ka1 {[%clk 0:00:18]}  d3 {[%clk 0:01:56]} 36. Rxc5+ {[%clk 0:00:17]}  Kb6 {[%clk 0:01:56]} 37. Rd5 {[%clk 0:00:17]}  Rg8 {[%clk 0:01:56]} 38. g3 {[%clk 0:00:17]}  Rf8 {[%clk 0:01:53]} 39. f4 {[%clk 0:00:17]}  Re8 {[%clk 0:01:52]} 40. Nc3 {[%clk 0:00:17]}  Re3 {[%clk 0:01:49]} 41. Kb2 {[%clk 0:00:15]}  Kc6 {[%clk 0:01:48]} 42. Rd4 {[%clk 0:00:15]}  Kc5 {[%clk 0:01:48]} 43. Rd5+ {[%clk 0:00:14]}  Kc4 {[%clk 0:01:47]} 44. Rd8 {[%clk 0:00:14]}  Rf3 {[%clk 0:01:45]} 45. Rc8+ {[%clk 0:00:14]}  Kd4 {[%clk 0:01:44]} 46. Rd8+ {[%clk 0:00:14]}  Kc4 {[%clk 0:01:45]} 47. Ne4 {[%clk 0:00:14]}  Re3 {[%clk 0:01:41]} 48. Rc8+ {[%clk 0:00:10]}  Kd4 {[%clk 0:01:41]} 49. Nc3 {[%clk 0:00:10]}  Rf3 {[%clk 0:01:40]} 50. Kb3 {[%clk 0:00:09]}  d2 {[%clk 0:01:37]} 51. Rd8+ {[%clk 0:00:09]}  Ke3 {[%clk 0:01:37]} 52. Kc2 {[%clk 0:00:09]}  Kf2 {[%clk 0:01:32]} 53. Rxd2+ {[%clk 0:00:09]}  Kg1 {[%clk 0:01:32]} 54. Ne2+ {[%clk 0:00:08]}  Kh1 {[%clk 0:01:28]} 55. f5 {[%clk 0:00:08]}  Rxf5 {[%clk 0:01:20]} 56. Nf4 {[%clk 0:00:08]}  Rc5+ {[%clk 0:00:56]} 57. Kb3 {[%clk 0:00:08]}  Rb5+ {[%clk 0:00:57]} 58. Kc4 {[%clk 0:00:08]}  Ra5 {[%clk 0:00:57]} 59. Kb4 {[%clk 0:00:07]}  Ra8 {[%clk 0:00:57]} 60. a4 {[%clk 0:00:07]}  Rb8+ {[%clk 0:00:57]} 61. Ka3 {[%clk 0:00:07]}  Ra8 {[%clk 0:00:57]} 62. Kb4 {[%clk 0:00:07]}  Rb8+ {[%clk 0:00:57]} 63. Ka5 {[%clk 0:00:07]}  Ra8+ {[%clk 0:00:57]} 64. Kb5 {[%clk 0:00:07]}  Rb8+ {[%clk 0:00:58]} 65. Kc6 {[%clk 0:00:08]}  Ra8 {[%clk 0:00:58]} 66. Rd4 {[%clk 0:00:08]}  Kxh2 {[%clk 0:00:56]} 67. Kb7 {[%clk 0:00:08]}  Ra5 {[%clk 0:00:54]} 68. Kb6 {[%clk 0:00:08]}  Rg5 {[%clk 0:00:54]} 69. a5 {[%clk 0:00:08]}  Kxg3 {[%clk 0:00:54]} 70. a6 {[%clk 0:00:08]}  h4 {[%clk 0:00:55]} 71. a7 {[%clk 0:00:07]}  Rg8 {[%clk 0:00:55]} 72. Kb7 {[%clk 0:00:07]}  Rg7+ {[%clk 0:00:56]} 73. Kc8 {[%clk 0:00:05]}  Rxa7 {[%clk 0:00:55]} 74. Nh5+ {[%clk 0:00:05]}  Kh3 {[%clk 0:00:55]} 75. Nf4+ {[%clk 0:00:04]}  Kg3 {[%clk 0:00:55]} 76. Ne2+ {[%clk 0:00:05]}  Kf2 {[%clk 0:00:55]} 77. Nf4 {[%clk 0:00:04]}  Rf7 {[%clk 0:00:52]} 78. Nh3+ {[%clk 0:00:03]}  Kg3 {[%clk 0:00:52]} 79. Rd3+ {[%clk 0:00:02]}  Kh2 {[%clk 0:00:51]} 80. Ng5 {[%clk 0:00:02]}  Rg7 {[%clk 0:00:50]} 81. Rh3+ {[%clk 0:00:02]}  Kg2 {[%clk 0:00:50]} 82. Rxh4 {[%clk 0:00:02]}  Rg8+ {[%clk 0:00:50]} 83. Kc7 {[%clk 0:00:02]}  Rxg5 {[%clk 0:00:51]} 84. Rd4 {[%clk 0:00:02]}  Kf3 {[%clk 0:00:51]} 85. Kd6 {[%clk 0:00:03]}  Ke3 {[%clk 0:00:51]} 86. Rd5 {[%clk 0:00:03]}  Rg6+ {[%clk 0:00:51]} 87. Kc5 {[%clk 0:00:02]}  Ke4 {[%clk 0:00:51]} 88. Rd4+ {[%clk 0:00:03]}  Ke3 {[%clk 0:00:51]} 89. Rd5 {[%clk 0:00:04]}  Rg8 {[%clk 0:00:51]} 90. Rd6 {[%clk 0:00:04]}  Rc8+ {[%clk 0:00:51]} 91. Rc6 {[%clk 0:00:05]}  Re8 {[%clk 0:00:51]} 92. Kd5 {[%clk 0:00:05]}  Kd3 {[%clk 0:00:50]} 93. Rh6 {[%clk 0:00:05]}  Re3 {[%clk 0:00:50]} 94. Rh4 {[%clk 0:00:05]}  Rg3 {[%clk 0:00:49]} 95. Ra4 {[%clk 0:00:05]}  Rg5+ {[%clk 0:00:48]} 96. Ke6 {[%clk 0:00:06]}  Rh5 {[%clk 0:00:49]} 1/2-1/2


[Site "https://www.chess.com"]

[Event "Titled Tuesday Blitz August 02 Late 2022"]
[White "Alekseenko, Kirill"]
[Black "Vrbljanac, Aleksandar"]
[WhiteFideId "4135539"]
[BlackFideId "932817"]
[WhiteElo "2682"]
[BlackElo "2309"]
[Result "1-0"]
[Round "01"]
[TimeControl "180+1"]
[Date "2022.08.02"]
[WhiteClock "0:00:50"]
[BlackClock "0:00:06"]

1. f4 {[%clk 0:03:00]}  d5 {[%clk 0:03:00]} 2. Nf3 {[%clk 0:03:00]}  Nf6 {[%clk 0:03:00]} 3. b3 {[%clk 0:03:00]}  g6 {[%clk 0:03:00]} 4. Bb2 {[%clk 0:03:01]}  Bg7 {[%clk 0:03:01]} 5. e3 {[%clk 0:03:01]}  O-O {[%clk 0:03:01]} 6. Be2 {[%clk 0:03:02]}  c5 {[%clk 0:03:02]} 7. O-O {[%clk 0:03:02]}  Nc6 {[%clk 0:03:00]} 8. Qe1 {[%clk 0:03:01]}  Qc7 {[%clk 0:03:00]} 9. d3 {[%clk 0:02:55]}  Nd7 {[%clk 0:02:45]} 10. Bxg7 {[%clk 0:02:54]}  Kxg7 {[%clk 0:02:46]} 11. Nbd2 {[%clk 0:02:54]}  e5 {[%clk 0:02:44]} 12. f5 {[%clk 0:02:54]}  gxf5 {[%clk 0:02:29]} 13. Nh4 {[%clk 0:02:52]}  f4 {[%clk 0:02:10]} 14. exf4 {[%clk 0:02:04]}  exf4 {[%clk 0:02:10]} 15. Nf5+ {[%clk 0:01:59]}  Kh8 {[%clk 0:02:06]} 16. Qh4 {[%clk 0:01:58]}  Qe5 {[%clk 0:01:34]} 17. Bg4 {[%clk 0:01:58]}  Qf6 {[%clk 0:01:24]} 18. Rae1 {[%clk 0:01:51]}  Qxh4 {[%clk 0:01:17]} 19. Nxh4 {[%clk 0:01:52]}  Nde5 {[%clk 0:01:11]} 20. Bxc8 {[%clk 0:01:50]}  Raxc8 {[%clk 0:01:12]} 21. Rxf4 {[%clk 0:01:47]}  Ng6 {[%clk 0:01:06]} 22. Nxg6+ {[%clk 0:01:28]}  hxg6 {[%clk 0:00:58]} 23. c3 {[%clk 0:01:18]}  Kg7 {[%clk 0:00:56]} 24. Rff1 {[%clk 0:01:16]}  Rce8 {[%clk 0:00:56]} 25. Nf3 {[%clk 0:01:16]}  b6 {[%clk 0:00:42]} 26. Kf2 {[%clk 0:01:16]}  Kf6 {[%clk 0:00:38]} 27. h4 {[%clk 0:01:16]}  Re6 {[%clk 0:00:34]} 28. Rxe6+ {[%clk 0:01:13]}  Kxe6 {[%clk 0:00:34]} 29. g4 {[%clk 0:01:12]}  f5 {[%clk 0:00:24]} 30. Re1+ {[%clk 0:00:54]}  Kf7 {[%clk 0:00:23]} 31. Ng5+ {[%clk 0:00:52]}  Kg8 {[%clk 0:00:20]} 32. Re6 {[%clk 0:00:50]}  fxg4+ {[%clk 0:00:18]} 33. Kg3 {[%clk 0:00:50]}  Nd8 {[%clk 0:00:09]} 34. Rxg6+ {[%clk 0:00:50]}  Kh8 {[%clk 0:00:09]} 35. Rd6 {[%clk 0:00:51]}  d4 {[%clk 0:00:05]} 36. cxd4 {[%clk 0:00:50]}  cxd4 {[%clk 0:00:06]} 37. Rxd8 {[%clk 0:00:50]} 1-0


[Site "https://www.chess.com"]

[Event "Titled Tuesday Blitz August 02 Late 2022"]
[White "Bick, Gabriel James Koop"]
[Black "Martinez Alcantara, Jose Eduardo"]
[WhiteFideId "2084058"]
[BlackFideId "3805662"]
[WhiteElo "2466"]
[BlackElo "2703"]
[Result "0-1"]
[Round "01"]
[TimeControl "180+1"]
[Date "2022.08.02"]
[WhiteClock "0:00:01"]
[BlackClock "0:00:57"]

1. e4 {[%clk 0:03:00]}  Nc6 {[%clk 0:02:59]} 2. Nf3 {[%clk 0:03:00]}  d6 {[%clk 0:02:59]} 3. d4 {[%clk 0:02:59]}  Nf6 {[%clk 0:03:00]} 4. Nc3 {[%clk 0:02:58]}  g6 {[%clk 0:03:00]} 5. Be3 {[%clk 0:02:50]}  Bg7 {[%clk 0:03:00]} 6. Be2 {[%clk 0:02:38]}  O-O {[%clk 0:02:59]} 7. O-O {[%clk 0:02:38]}  Bg4 {[%clk 0:02:58]} 8. d5 {[%clk 0:02:31]}  Bxf3 {[%clk 0:02:57]} 9. Bxf3 {[%clk 0:02:29]}  Nb8 {[%clk 0:02:58]} 10. Ne2 {[%clk 0:02:13]}  Nbd7 {[%clk 0:02:46]} 11. Nd4 {[%clk 0:02:11]}  Nc5 {[%clk 0:02:44]} 12. b4 {[%clk 0:01:52]}  Ncd7 {[%clk 0:02:13]} 13. c4 {[%clk 0:01:49]}  a5 {[%clk 0:02:13]} 14. a3 {[%clk 0:01:48]}  Ne5 {[%clk 0:02:14]} 15. Rc1 {[%clk 0:00:57]}  axb4 {[%clk 0:02:11]} 16. axb4 {[%clk 0:00:58]}  Ra2 {[%clk 0:01:59]} 17. c5 {[%clk 0:00:44]}  Rb2 {[%clk 0:01:46]} 18. Rb1 {[%clk 0:00:33]}  Ra2 {[%clk 0:01:39]} 19. Re1 {[%clk 0:00:19]}  h5 {[%clk 0:01:38]} 20. Bf4 {[%clk 0:00:14]}  Nfg4 {[%clk 0:01:35]} 21. Re2 {[%clk 0:00:08]}  Ra3 {[%clk 0:01:26]} 22. h3 {[%clk 0:00:07]}  Rd3 {[%clk 0:01:26]} 23. Rd2 {[%clk 0:00:05]}  Rxd2 {[%clk 0:01:19]} 24. Qxd2 {[%clk 0:00:02]}  Nxf3+ {[%clk 0:01:17]} 25. Nxf3 {[%clk 0:00:03]}  Nf6 {[%clk 0:01:18]} 26. Qd3 {[%clk 0:00:03]}  Qa8 {[%clk 0:01:17]} 27. Rc1 {[%clk 0:00:01]}  Qa4 {[%clk 0:01:15]} 28. cxd6 {[%clk 0:00:01]}  cxd6 {[%clk 0:01:15]} 29. Rc7 {[%clk 0:00:01]}  Qxb4 {[%clk 0:00:57]} 30. Rxe7 {[%clk 0:00:01]}  Rd8 {[%clk 0:00:57]} 0-1


[Site "https://www.chess.com"]

[Event "Titled Tuesday Blitz August 02 Late 2022"]
[White "Estrada Nieto, Julian"]
[Black "Shimanov, Aleksandr"]
[WhiteFideId "5101018"]
[BlackFideId "4198603"]
[WhiteElo "2252"]
[BlackElo "2605"]
[Result "0-1"]
[Round "01"]
[TimeControl "180+1"]
[Date "2022.08.02"]
[WhiteClock "0:00:12"]
[BlackClock "0:00:03"]

1. e4 {[%clk 0:03:00]}  d5 {[%clk 0:02:57]} 2. exd5 {[%clk 0:03:00]}  Qxd5 {[%clk 0:02:58]} 3. Nc3 {[%clk 0:03:00]}  Qe5+ {[%clk 0:02:58]} 4. Be2 {[%clk 0:02:56]}  Bg4 {[%clk 0:02:53]} 5. d4 {[%clk 0:02:54]}  Bxe2 {[%clk 0:02:53]} 6. Ngxe2 {[%clk 0:02:48]}  Qa5 {[%clk 0:02:53]} 7. O-O {[%clk 0:02:43]}  Nf6 {[%clk 0:02:52]} 8. Bd2 {[%clk 0:02:40]}  Nc6 {[%clk 0:02:51]} 9. Ne4 {[%clk 0:02:18]}  Qd5 {[%clk 0:02:48]} 10. Nxf6+ {[%clk 0:02:13]}  gxf6 {[%clk 0:02:49]} 11. c3 {[%clk 0:02:08]}  O-O-O {[%clk 0:02:47]} 12. Nf4 {[%clk 0:02:07]}  Qf5 {[%clk 0:02:47]} 13. Qe2 {[%clk 0:01:45]}  e5 {[%clk 0:02:42]} 14. Nh5 {[%clk 0:01:34]}  exd4 {[%clk 0:02:41]} 15. Ng3 {[%clk 0:01:30]}  Qe6 {[%clk 0:02:38]} 16. Qb5 {[%clk 0:01:18]}  Qd5 {[%clk 0:02:20]} 17. a4 {[%clk 0:01:15]}  h5 {[%clk 0:02:15]} 18. Rfe1 {[%clk 0:01:10]}  h4 {[%clk 0:02:12]} 19. Ne4 {[%clk 0:01:09]}  Be7 {[%clk 0:02:09]} 20. Bf4 {[%clk 0:00:58]}  a6 {[%clk 0:01:57]} 21. Qxd5 {[%clk 0:00:50]}  Rxd5 {[%clk 0:01:58]} 22. Rad1 {[%clk 0:00:48]}  Rhd8 {[%clk 0:01:52]} 23. c4 {[%clk 0:00:47]}  Rf5 {[%clk 0:01:44]} 24. g3 {[%clk 0:00:41]}  Ne5 {[%clk 0:01:37]} 25. Bxe5 {[%clk 0:00:37]}  fxe5 {[%clk 0:01:35]} 26. Kg2 {[%clk 0:00:34]}  Rh5 {[%clk 0:01:27]} 27. g4 {[%clk 0:00:33]}  Rh6 {[%clk 0:01:25]} 28. h3 {[%clk 0:00:33]}  Rb6 {[%clk 0:01:24]} 29. Re2 {[%clk 0:00:32]}  Rb3 {[%clk 0:01:23]} 30. Red2 {[%clk 0:00:25]}  Bb4 {[%clk 0:01:17]} 31. Rd3 {[%clk 0:00:25]}  Rxb2 {[%clk 0:01:15]} 32. Rf3 {[%clk 0:00:25]}  Rc2 {[%clk 0:01:04]} 33. Rxf7 {[%clk 0:00:24]}  Rxc4 {[%clk 0:01:04]} 34. g5 {[%clk 0:00:24]}  Rc6 {[%clk 0:01:02]} 35. Nf6 {[%clk 0:00:22]}  d3 {[%clk 0:00:40]} 36. Kf3 {[%clk 0:00:20]}  d2 {[%clk 0:00:37]} 37. g6 {[%clk 0:00:20]}  e4+ {[%clk 0:00:23]} 38. Ke2 {[%clk 0:00:20]}  Bc3 {[%clk 0:00:11]} 39. Nxe4 {[%clk 0:00:17]}  Re6 {[%clk 0:00:05]} 40. f3 {[%clk 0:00:17]}  Bb4 {[%clk 0:00:05]} 41. g7 {[%clk 0:00:17]}  Rg8 {[%clk 0:00:05]} 42. Rg1 {[%clk 0:00:15]}  Ree8 {[%clk 0:00:04]} 43. Kd1 {[%clk 0:00:14]}  c5 {[%clk 0:00:04]} 44. Nf6 {[%clk 0:00:14]}  Re1+ {[%clk 0:00:03]} 45. Kc2 {[%clk 0:00:13]}  Rxg1 {[%clk 0:00:04]} 46. Rf8+ {[%clk 0:00:13]}  Kc7 {[%clk 0:00:03]} 47. Nxg8 {[%clk 0:00:12]}  d1=Q+ {[%clk 0:00:03]} 48. Kb2 {[%clk 0:00:12]}  Rg2# {[%clk 0:00:03]} 0-1


[Site "https://www.chess.com"]

[Event "Titled Tuesday Blitz August 02 Late 2022"]
[White "Fieberg, Samuel"]
[Black "Ibarra Jerez, Jose Carlos"]
[WhiteFideId "12901717"]
[BlackFideId "2226332"]
[WhiteElo "2461"]
[BlackElo "2628"]
[Result "0-1"]
[Round "01"]
[TimeControl "180+1"]
[Date "2022.08.02"]
[WhiteClock "0:02:10"]
[BlackClock "0:02:43"]

1. e4 {[%clk 0:02:59]}  c5 {[%clk 0:03:00]} 2. Nf3 {[%clk 0:02:59]}  e6 {[%clk 0:03:00]} 3. d4 {[%clk 0:03:00]}  cxd4 {[%clk 0:03:01]} 4. Nxd4 {[%clk 0:03:00]}  Qb6 {[%clk 0:03:02]} 5. Nb3 {[%clk 0:02:56]}  Qc7 {[%clk 0:03:01]} 6. Bd3 {[%clk 0:02:55]}  Nf6 {[%clk 0:03:01]} 7. O-O {[%clk 0:02:55]}  d5 {[%clk 0:03:02]} 8. exd5 {[%clk 0:02:54]}  Nxd5 {[%clk 0:03:02]} 9. Be4 {[%clk 0:02:47]}  Nf6 {[%clk 0:03:01]} 10. Bf3 {[%clk 0:02:48]}  Nbd7 {[%clk 0:03:01]} 11. Nc3 {[%clk 0:02:47]}  a6 {[%clk 0:02:58]} 12. Be3 {[%clk 0:02:38]}  Ne5 {[%clk 0:02:57]} 13. Bf4 {[%clk 0:02:32]}  Bd6 {[%clk 0:02:56]} 14. Bg3 {[%clk 0:02:25]}  O-O {[%clk 0:02:55]} 15. Qe2 {[%clk 0:02:20]}  Nxf3+ {[%clk 0:02:52]} 16. Qxf3 {[%clk 0:02:21]}  e5 {[%clk 0:02:52]} 17. Rad1 {[%clk 0:02:16]}  Bg4 {[%clk 0:02:51]} 18. Qd3 {[%clk 0:02:13]}  Bxd1 {[%clk 0:02:52]} 19. Rxd1 {[%clk 0:02:13]}  Rad8 {[%clk 0:02:49]} 20. Qe2 {[%clk 0:02:13]}  e4 {[%clk 0:02:44]} 21. Nxe4 {[%clk 0:02:11]}  Nxe4 {[%clk 0:02:43]} 22. Qxe4 {[%clk 0:02:10]}  Bxg3 {[%clk 0:02:43]} 23. Rxd8 {[%clk 0:02:10]}  Bxh2+ {[%clk 0:02:43]} 0-1


[Site "https://www.chess.com"]

[Event "Titled Tuesday Blitz August 02 Late 2022"]
[White "Fiedorek, Michal"]
[Black "Czarnota, Pawel"]
[WhiteFideId "1199528"]
[BlackFideId "1121219"]
[WhiteElo "1833"]
[BlackElo "2534"]
[Result "0-1"]
[Round "01"]
[TimeControl "180+1"]
[Date "2022.08.02"]
[WhiteClock "0:00:06"]
[BlackClock "0:01:17"]

1. Nf3 {[%clk 0:02:54]}  c5 {[%clk 0:02:59]} 2. c4 {[%clk 0:02:54]}  Nc6 {[%clk 0:02:58]} 3. g3 {[%clk 0:02:55]}  g6 {[%clk 0:02:58]} 4. Bg2 {[%clk 0:02:55]}  Bg7 {[%clk 0:02:59]} 5. O-O {[%clk 0:02:55]}  d6 {[%clk 0:03:00]} 6. Nc3 {[%clk 0:02:56]}  e5 {[%clk 0:02:59]} 7. d3 {[%clk 0:02:52]}  Nge7 {[%clk 0:03:00]} 8. Nd5 {[%clk 0:02:47]}  Nxd5 {[%clk 0:02:58]} 9. cxd5 {[%clk 0:02:47]}  Ne7 {[%clk 0:02:58]} 10. Nd2 {[%clk 0:02:46]}  O-O {[%clk 0:02:58]} 11. a4 {[%clk 0:02:42]}  Bg4 {[%clk 0:02:43]} 12. Nc4 {[%clk 0:02:40]}  h6 {[%clk 0:02:33]} 13. h3 {[%clk 0:02:36]}  Bf5 {[%clk 0:02:33]} 14. Bd2 {[%clk 0:02:25]}  b6 {[%clk 0:02:31]} 15. Bc3 {[%clk 0:02:24]}  Nc8 {[%clk 0:02:25]} 16. Qb3 {[%clk 0:02:21]}  Bd7 {[%clk 0:02:22]} 17. Na3 {[%clk 0:01:49]}  a6 {[%clk 0:02:22]} 18. Nc4 {[%clk 0:01:36]}  Rb8 {[%clk 0:02:22]} 19. Qc2 {[%clk 0:01:33]}  Qc7 {[%clk 0:02:18]} 20. b3 {[%clk 0:01:26]}  Ne7 {[%clk 0:02:12]} 21. Bb2 {[%clk 0:01:22]}  b5 {[%clk 0:02:11]} 22. axb5 {[%clk 0:01:21]}  axb5 {[%clk 0:02:12]} 23. Nd2 {[%clk 0:01:21]}  Qb6 {[%clk 0:02:08]} 24. Kh1 {[%clk 0:01:20]}  Ra8 {[%clk 0:02:07]} 25. f4 {[%clk 0:01:20]}  Nf5 {[%clk 0:02:03]} 26. Rf3 {[%clk 0:01:19]}  Rxa1+ {[%clk 0:02:00]} 27. Bxa1 {[%clk 0:01:18]}  e4 {[%clk 0:02:00]} 28. dxe4 {[%clk 0:01:14]}  Bxa1 {[%clk 0:01:58]} 29. exf5 {[%clk 0:01:14]}  Bxf5 {[%clk 0:01:58]} 30. e4 {[%clk 0:01:14]}  Bd7 {[%clk 0:01:58]} 31. Rf1 {[%clk 0:01:09]}  Bg7 {[%clk 0:01:57]} 32. Nf3 {[%clk 0:00:48]}  Ra8 {[%clk 0:01:54]} 33. e5 {[%clk 0:00:46]}  Bf5 {[%clk 0:01:54]} 34. Qe2 {[%clk 0:00:45]}  Qc7 {[%clk 0:01:46]} 35. Nh4 {[%clk 0:00:39]}  Re8 {[%clk 0:01:27]} 36. Qxb5 {[%clk 0:00:37]}  Bd7 {[%clk 0:01:26]} 37. Qa6 {[%clk 0:00:22]}  dxe5 {[%clk 0:01:25]} 38. d6 {[%clk 0:00:22]}  Qb8 {[%clk 0:01:22]} 39. fxe5 {[%clk 0:00:20]}  Qxb3 {[%clk 0:01:20]} 40. Qa7 {[%clk 0:00:12]}  Be6 {[%clk 0:01:19]} 41. Qxc5 {[%clk 0:00:11]}  Qxg3 {[%clk 0:01:18]} 42. Nf3 {[%clk 0:00:12]}  Bxh3 {[%clk 0:01:17]} 43. Bxh3 {[%clk 0:00:10]}  Qxh3+ {[%clk 0:01:18]} 44. Kg1 {[%clk 0:00:10]}  Bxe5 {[%clk 0:01:16]} 45. Nxe5 {[%clk 0:00:06]}  Qg3+ {[%clk 0:01:16]} 46. Kh1 {[%clk 0:00:06]}  Rxe5 {[%clk 0:01:17]} 0-1


[Site "https://www.chess.com"]

[Event "Titled Tuesday Blitz August 02 Late 2022"]
[White "Fonseca Manrique, Enrique"]
[Black "Yoo, Christopher Woojin"]
[WhiteFideId "5114330"]
[BlackFideId "30909694"]
[WhiteElo "2511"]
[BlackElo "2105"]
[Result "0-1"]
[Round "01"]
[TimeControl "180+1"]
[Date "2022.08.02"]
[WhiteClock "0:00:09"]
[BlackClock "0:00:06"]

1. e4 {[%clk 0:03:00]}  c6 {[%clk 0:02:55]} 2. d4 {[%clk 0:02:59]}  d5 {[%clk 0:02:55]} 3. e5 {[%clk 0:02:59]}  Bf5 {[%clk 0:02:55]} 4. Nf3 {[%clk 0:02:58]}  e6 {[%clk 0:02:52]} 5. Be2 {[%clk 0:02:58]}  Ne7 {[%clk 0:02:47]} 6. O-O {[%clk 0:02:52]}  Nd7 {[%clk 0:02:41]} 7. Nbd2 {[%clk 0:02:51]}  Ng6 {[%clk 0:02:39]} 8. Nb3 {[%clk 0:02:44]}  f6 {[%clk 0:02:29]} 9. exf6 {[%clk 0:02:29]}  Qxf6 {[%clk 0:01:54]} 10. Bg5 {[%clk 0:02:21]}  Qf7 {[%clk 0:01:54]} 11. a4 {[%clk 0:01:39]}  Bd6 {[%clk 0:01:49]} 12. a5 {[%clk 0:01:35]}  O-O {[%clk 0:01:44]} 13. Qd2 {[%clk 0:01:30]}  h6 {[%clk 0:01:42]} 14. Be3 {[%clk 0:01:25]}  Nf6 {[%clk 0:01:38]} 15. c4 {[%clk 0:01:01]}  Ne4 {[%clk 0:01:32]} 16. Qc1 {[%clk 0:01:01]}  Qe7 {[%clk 0:01:15]} 17. a6 {[%clk 0:00:53]}  b6 {[%clk 0:00:44]} 18. cxd5 {[%clk 0:00:33]}  cxd5 {[%clk 0:00:41]} 19. Qc6 {[%clk 0:00:33]}  Rac8 {[%clk 0:00:36]} 20. Qb5 {[%clk 0:00:31]}  Rc2 {[%clk 0:00:25]} 21. Rac1 {[%clk 0:00:25]}  Rxb2 {[%clk 0:00:23]} 22. Rc6 {[%clk 0:00:20]}  Qg5 {[%clk 0:00:13]} 23. Nxg5 {[%clk 0:00:16]}  hxg5 {[%clk 0:00:14]} 24. Bd3 {[%clk 0:00:15]}  Nf4 {[%clk 0:00:12]} 25. Bxe4 {[%clk 0:00:14]}  Bxe4 {[%clk 0:00:09]} 26. Rxd6 {[%clk 0:00:13]}  Bd3 {[%clk 0:00:09]} 27. Qb4 {[%clk 0:00:11]}  Bxf1 {[%clk 0:00:09]} 28. Bxf4 {[%clk 0:00:10]}  Rxf4 {[%clk 0:00:08]} 29. Kxf1 {[%clk 0:00:09]}  Rfxf2+ {[%clk 0:00:08]} 30. Ke1 {[%clk 0:00:09]}  Rxg2 {[%clk 0:00:07]} 31. Nd2 {[%clk 0:00:09]}  Rxb4 {[%clk 0:00:07]} 32. Rxe6 {[%clk 0:00:09]}  Rxd4 {[%clk 0:00:06]} 33. Re8+ {[%clk 0:00:09]}  Kf7 {[%clk 0:00:05]} 34. Ra8 {[%clk 0:00:09]}  Rdxd2 {[%clk 0:00:05]} 35. Rxa7+ {[%clk 0:00:09]}  Kg6 {[%clk 0:00:05]} 36. Re7 {[%clk 0:00:09]}  Ra2 {[%clk 0:00:06]} 37. a7 {[%clk 0:00:09]}  Ra1# {[%clk 0:00:06]} 0-1


[Site "https://www.chess.com"]

[Event "Titled Tuesday Blitz August 02 Late 2022"]
[White "Jian, Alex"]
[Black "Chigaev, Maksim"]
[WhiteFideId "30901022"]
[BlackFideId "4108116"]
[WhiteElo "2095"]
[BlackElo "2438"]
[Result "0-1"]
[Round "01"]
[TimeControl "180+1"]
[Date "2022.08.02"]
[WhiteClock "0:00:02"]
[BlackClock "0:00:28"]

1. Nf3 {[%clk 0:02:58]}  Nf6 {[%clk 0:02:59]} 2. b3 {[%clk 0:02:58]}  g6 {[%clk 0:02:59]} 3. Bb2 {[%clk 0:02:58]}  Bg7 {[%clk 0:03:00]} 4. e3 {[%clk 0:02:58]}  O-O {[%clk 0:03:00]} 5. Be2 {[%clk 0:02:57]}  c5 {[%clk 0:03:00]} 6. O-O {[%clk 0:02:57]}  d5 {[%clk 0:03:00]} 7. c4 {[%clk 0:02:55]}  d4 {[%clk 0:03:00]} 8. exd4 {[%clk 0:02:53]}  Ne8 {[%clk 0:03:00]} 9. d3 {[%clk 0:02:32]}  Nc6 {[%clk 0:02:56]} 10. Nbd2 {[%clk 0:02:26]}  Nc7 {[%clk 0:02:56]} 11. Rb1 {[%clk 0:02:08]}  cxd4 {[%clk 0:02:55]} 12. a3 {[%clk 0:02:07]}  a5 {[%clk 0:02:55]} 13. Re1 {[%clk 0:02:07]}  Na6 {[%clk 0:02:54]} 14. Bf1 {[%clk 0:02:05]}  e5 {[%clk 0:02:51]} 15. g3 {[%clk 0:02:05]}  Re8 {[%clk 0:02:51]} 16. Bg2 {[%clk 0:02:04]}  Nc5 {[%clk 0:02:46]} 17. Ne4 {[%clk 0:01:52]}  Nxe4 {[%clk 0:02:45]} 18. Rxe4 {[%clk 0:01:52]}  Bf5 {[%clk 0:02:44]} 19. Re1 {[%clk 0:01:52]}  e4 {[%clk 0:02:38]} 20. Nh4 {[%clk 0:01:43]}  e3 {[%clk 0:02:36]} 21. Nxf5 {[%clk 0:01:40]}  gxf5 {[%clk 0:02:37]} 22. Qh5 {[%clk 0:01:30]}  exf2+ {[%clk 0:01:23]} 23. Kxf2 {[%clk 0:01:31]}  Qf6 {[%clk 0:01:19]} 24. Kg1 {[%clk 0:01:15]}  Ne5 {[%clk 0:01:15]} 25. Rbd1 {[%clk 0:00:54]}  Ng4 {[%clk 0:01:06]} 26. Bd5 {[%clk 0:00:25]}  Ne3 {[%clk 0:00:55]} 27. Rc1 {[%clk 0:00:19]}  Rad8 {[%clk 0:00:47]} 28. Kh1 {[%clk 0:00:14]}  b6 {[%clk 0:00:42]} 29. Bxd4 {[%clk 0:00:09]}  Qxd4 {[%clk 0:00:36]} 30. Bxf7+ {[%clk 0:00:09]}  Kf8 {[%clk 0:00:30]} 31. Bxe8 {[%clk 0:00:08]}  Rxe8 {[%clk 0:00:31]} 32. Re2 {[%clk 0:00:08]}  Qxd3 {[%clk 0:00:30]} 33. Rce1 {[%clk 0:00:08]}  Qe4+ {[%clk 0:00:26]} 34. Kg1 {[%clk 0:00:08]}  Bd4 {[%clk 0:00:27]} 35. Qh6+ {[%clk 0:00:06]}  Kg8 {[%clk 0:00:26]} 36. Qg5+ {[%clk 0:00:05]}  Kh8 {[%clk 0:00:27]} 37. Rxe3 {[%clk 0:00:02]}  Bxe3+ {[%clk 0:00:27]} 38. Rxe3 {[%clk 0:00:01]}  Qxe3+ {[%clk 0:00:27]} 39. Qxe3 {[%clk 0:00:02]}  Rxe3 {[%clk 0:00:28]} 0-1


[Site "https://www.chess.com"]